lending/lending_fUSD_20260312
["ID","MTS","AMOUNT","RATE_DAILY","PERIOD"]
[408240835,1773297041067,-150.0,0.00019726,2]
[408240836,1773297041076,-2146.00575901,0.00019759,2]
[408240837,1773297041087,-1029.7824506,0.00019773,2]
[408240838,1773297041297,-13345.8217981,0.00019773,2]
[408240839,1773297041306,-54989.3137305,0.00019773,2]
[408240840,1773297041315,-151.0,0.00019773,2]
[408240841,1773297041325,-151.0,0.00019773,2]
[408240842,1773297041334,-151.0,0.00019773,2]
[408240843,1773297041343,-151.0,0.00019773,2]
[408240844,1773297041352,-151.0,0.00019773,2]
[408240845,1773297041361,-151.0,0.00019773,2]
[408240846,1773297041370,-151.0,0.00019773,2]
[408240847,1773297041379,-471.917558,0.00019773,2]
[408240848,1773297041391,-471.917558,0.00019773,2]
[408240849,1773297041400,-471.917558,0.00019773,2]
[408240850,1773297041410,-471.917558,0.00019773,2]
[408240851,1773297041420,-153.162139,0.00019773,2]
[408240852,1773297041430,-151.0,0.00019773,2]
[408240853,1773297041439,-192.103456,0.00019773,2]
[408240854,1773297041449,-578.622137,0.00019773,2]
[408240855,1773297041459,-192.103456,0.00019773,2]
[408240856,1773297041468,-578.622137,0.00019773,2]
[408240857,1773297041478,-192.103456,0.00019773,2]
[408240858,1773297041489,-578.622137,0.00019773,2]
[408240859,1773297041499,-192.103456,0.00019773,2]
[408240860,1773297041508,-578.622137,0.00019773,2]
[408240861,1773297041517,-151.0,0.00019773,2]
[408240862,1773297041527,-415.84994,0.00019773,2]
[408240863,1773297041535,-415.84994,0.00019773,2]
[408240864,1773297041544,-151.0,0.00019773,2]
[408240865,1773297041554,-415.84994,0.00019773,2]
[408240866,1773297041563,-282.28282856,0.00019773,2]
[408240867,1773297041572,-151.0,0.00019775,2]
[408240868,1773297041582,-200.0,0.00019781,2]
[408240869,1773297041591,-1280.0,0.00019783,2]
[408240870,1773297041601,-1213.0,0.00019783,2]
[408240871,1773297041610,-1043.0,0.00019783,2]
[408240872,1773297041619,-1343.0,0.00019783,2]
[408240873,1773297041629,-620.0,0.00019783,2]
[408240874,1773297041643,-2146.00575901,0.00019794,2]
[408240875,1773297041652,-28110.5785,0.000198,2]
[408240876,1773297041662,-465.84052,0.000198,2]
[408240877,1773297041672,-465.84053,0.000198,2]
[408240878,1773297041682,-2146.00575901,0.0001983,2]
[408240879,1773297041692,-282.28282856,0.00019837,2]
[408240880,1773297041701,-2146.00575901,0.00019865,2]
[408240881,1773297041712,-500.0,0.00019881,2]
[408240882,1773297041722,-168.0,0.00019886,2]
[408240883,1773297041731,-99980.0,0.000199,2]
[408240884,1773297041740,-434.44482984,0.000199,2]
[408240885,1773297041750,-154.66553233,0.000199,6]
[408240886,1773297041759,-151.50293765,0.000199,6]
[408240887,1773297041768,-153.95732143,0.000199,6]
[408240888,1773297041788,-151.0,0.000199,2]
[408240889,1773297041798,-151.0,0.000199,2]
[408240890,1773297041807,-151.0,0.000199,2]
[408240891,1773297041817,-364.443725,0.000199,2]
[408240892,1773297041827,-364.443725,0.000199,2]
[408240893,1773297041837,-364.443725,0.000199,2]
[408240894,1773297041847,-364.443725,0.000199,2]
[408240895,1773297041857,-151.0,0.000199,2]
[408240896,1773297041866,-151.0,0.000199,2]
[408240897,1773297041876,-151.0,0.000199,2]
[408240898,1773297041885,-434.489494,0.000199,2]
[408240899,1773297041895,-434.489494,0.000199,2]
[408240900,1773297041904,-434.489494,0.000199,2]
[408240901,1773297041914,-434.489494,0.000199,2]
[408240902,1773297041924,-164.912808,0.000199,2]
[408240903,1773297041933,-185.047581,0.000199,2]
[408240904,1773297041943,-151.0,0.000199,2]
[408240905,1773297041952,-151.0,0.000199,2]
[408240906,1773297041962,-151.0,0.000199,2]
[408240907,1773297041971,-2146.00575901,0.000199,2]
[408240908,1773297041981,-153.88033,0.000199,2]
[408240909,1773297041991,-151.0,0.000199,2]
[408240910,1773297042000,-151.0,0.000199,2]
[408240911,1773297042010,-151.0,0.000199,2]
[408240912,1773297042019,-151.0,0.000199,2]
[408240913,1773297042030,-471.917558,0.000199,2]
[408240914,1773297042039,-471.917558,0.000199,2]
[408240915,1773297042048,-471.917558,0.000199,2]
[408240916,1773297042058,-471.917558,0.000199,2]
[408240917,1773297042067,-151.0,0.000199,2]
[408240918,1773297042076,-192.103456,0.000199,2]
[408240919,1773297042085,-578.622137,0.000199,2]
[408240920,1773297042094,-192.103456,0.000199,2]
[408240921,1773297042104,-578.622137,0.000199,2]
[408240922,1773297042114,-192.103456,0.000199,2]
[408240923,1773297042123,-578.622137,0.000199,2]
[408240924,1773297042132,-192.103456,0.000199,2]
[408240925,1773297042143,-578.622137,0.000199,2]
[408240926,1773297042155,-176.639564,0.000199,2]
[408240927,1773297042165,-282.28282856,0.000199,2]
[408240928,1773297042175,-415.84994,0.000199,2]
[408240929,1773297042186,-415.84994,0.000199,2]
[408240930,1773297042197,-151.0,0.000199,2]
[408240931,1773297042207,-415.84994,0.000199,2]
[408240932,1773297042218,-962.0,0.000199,2]
[408240933,1773297042227,-523.54089474,0.000199,2]
[408240934,1773297042237,-534.01,0.00019907,2]
[408240935,1773297042247,-83865.44688189,0.0001995,2]
[408240936,1773297042258,-161.063896,0.0001995,2]
[408240937,1773297042268,-151.0,0.0001995,2]
[408240938,1773297042278,-151.0,0.0001995,2]
[408240939,1773297042287,-157.879927,0.0001995,2]
[408240940,1773297042297,-364.443725,0.0001995,2]
[408240941,1773297042307,-364.443725,0.0001995,2]
[408240942,1773297042318,-364.443725,0.0001995,2]
[408240943,1773297042327,-364.443725,0.0001995,2]
[408240944,1773297042336,-151.0,0.0001995,2]
[408240945,1773297042345,-151.0,0.0001995,2]
[408240946,1773297042355,-151.0,0.0001995,2]
[408240947,1773297042364,-434.489494,0.0001995,2]
[408240948,1773297042373,-434.489494,0.0001995,2]
[408240949,1773297042383,-434.489494,0.0001995,2]
[408240950,1773297042392,-434.489494,0.0001995,2]
[408240951,1773297042401,-151.0,0.0001995,2]
[408240952,1773297042411,-154.065147,0.0001995,2]
[408240953,1773297042420,-151.0,0.0001995,2]
[408240954,1773297042429,-151.0,0.0001995,2]
[408240955,1773297042438,-171.321703,0.0001995,2]
[408240956,1773297042447,-151.0,0.0001995,2]
[408240957,1773297042458,-151.0,0.0001995,2]
[408240958,1773297042467,-471.917558,0.0001995,2]
[408240959,1773297042477,-471.917558,0.0001995,2]
[408240960,1773297042486,-471.917558,0.0001995,2]
[408240961,1773297042496,-471.917558,0.0001995,2]
[408240962,1773297042505,-151.0,0.0001995,2]
[408240963,1773297042515,-192.103456,0.0001995,2]
[408240964,1773297042524,-578.622137,0.0001995,2]
[408240965,1773297042534,-192.103456,0.0001995,2]
[408240966,1773297042546,-578.622137,0.0001995,2]
[408240967,1773297042556,-192.103456,0.0001995,2]
[408240968,1773297042565,-578.622137,0.0001995,2]
[408240969,1773297042574,-192.103456,0.0001995,2]
[408240970,1773297042584,-578.622137,0.0001995,2]
[408240971,1773297042593,-415.84994,0.0001995,2]
[408240972,1773297042602,-415.84994,0.0001995,2]
[408240973,1773297042611,-151.0,0.0001995,2]
[408240974,1773297042621,-852.96,0.00019956,2]
[408240975,1773297042631,-168.0,0.00019972,2]
[408240976,1773297042643,-171.13525647,0.0001999,2]
[408240977,1773297042652,-171.13525647,0.0001999,2]
[408240978,1773297042662,-502.39753346,0.00019999,2]
[408240979,1773297042671,-352.08916569,0.00019999,2]
[408240980,1773297042680,-1200.0,0.0002,2]
[408240981,1773297042690,-527245.13730585,0.0002,2]
[408240982,1773297042700,-5404.9429085,0.0002,2]
[408240983,1773297042709,-2877.77905784,0.0002,2]
[408240984,1773297042718,-164707.93099826,0.0002,2]
[408240991,1773297043372,-415.84994,0.00019773,2]
[408240992,1773297043381,-363.69611746,0.000199,2]
[408240993,1773297043393,-52.15382254,0.000199,2]
[408240994,1773297043402,-415.84994,0.0001995,2]
[408240995,1773297043411,-415.84994,0.0001995,2]
[408240996,1773297043420,-1013.6062975,0.0002,2]
[408240997,1773297043432,-258.07893787,0.0002,2]
[408240998,1773297043443,-16920.69928953,0.0002,2]
[408240999,1773297043454,-887.1555738,0.0002,2]
[408241000,1773297043465,-1399750.64376821,0.0002,2]
[408241001,1773297043519,-18.12530893,0.0002,2]
[408241007,1773297046236,-181.54107422,0.00019671,2]
[408241008,1773297046247,-6232.86470509,0.0002,2]
[408241009,1773297046461,-12360.90097572,0.0002,2]
[408241010,1773297046522,-1218.1346,0.0002,2]
[408241011,1773297046535,-1141.75539225,0.0002,2]
[408241227,1773297381242,-509.0,0.00017,2]
[408241228,1773297381263,-69.02,0.00017917,3]
[408241229,1773297383747,-82.98,0.00017917,3]
[408241230,1773297383769,-166.66,0.00017965,2]
[408241231,1773297383789,-166.66,0.00018343,2]
[408241232,1773297383812,-161.72,0.00018484,2]
[408241233,1773297386351,-416.3,0.00018484,2]
[408241234,1773297439599,161.72,0.000185,2]
[408241235,1773297439619,498.28,0.000185,2]
[408241236,1773297442491,79.74,0.000152,5]
[408241237,1773297448018,167.52,9.237e-05,2]
[408241238,1773297448222,167.52,0.00010776,2]
[408241239,1773297448637,167.52,0.00012316,2]
[408241240,1773297448675,-578.02,0.000152,5]
[408241241,1773297448708,167.52,0.00013855,2]
[408241242,1773297450703,-578.02,0.000152,5]
[408241243,1773297451680,-578.02,0.000152,5]
[408241244,1773297453105,-578.02,0.000152,5]
[408241245,1773297453993,-578.02,0.000152,5]
[408241246,1773297456135,-578.02,0.000152,5]
[408241247,1773297457784,-578.02,0.000152,5]
[408241248,1773297465411,-578.02,0.000152,5]
[408241249,1773297468764,-578.02,0.000152,5]
[408241250,1773297471807,-251.08,0.000152,5]
[408241251,1773297471828,-167.52,0.00015395,2]
[408241252,1773297471851,-159.42,0.00016934,2]
[408241253,1773297473024,-8.1,0.00016934,2]
[408241254,1773297473045,-167.52,0.00018473,2]
[408241255,1773297503421,10000.08162284,0.0002,120]
[408241256,1773297504689,402.4,0.00017,2]
[408241257,1773297504710,105.6,0.00017,2]
[408241258,1773297512912,-209.117595,0.00018528,2]
[408241259,1773297512933,-186.97354337,0.00018622,2]
[408241269,1773297648633,152.62,0.0001844,2]
[408241271,1773297720040,538.262405,0.00018492,2]
[408241272,1773297720062,472.42,0.00018492,2]
[408241273,1773297720086,578.02,0.00018492,2]
[408241274,1773297737313,-10766.2,0.00018425,2]
[408241275,1773297737335,-11.297595,0.00018492,2]
[408241276,1773297824622,200.0,0.00018427,2]
[408241277,1773297836882,150.0,0.00018423,2]
[408241279,1773297859927,10000.0,0.000185,2]
[408241280,1773297863279,427.497595,0.00017,2]
[408241284,1773297981018,10000.0,0.000144,2]
[408241285,1773297992896,10000.0,0.000144,2]
[408241286,1773298000765,10000.0,0.000144,2]
[408241287,1773298024781,3980.0,0.000144,2]
[408241289,1773298231511,-250.0,0.00015,2]
[408241290,1773298231530,-1058.95,0.00015633,2]
[408241291,1773298231550,-600.0,0.000165,2]
[408241292,1773298231560,-557.36,0.000165,2]
[408241293,1773298231570,-535.0,0.00017,2]
[408241294,1773298231579,-166.66,0.00018722,2]
[408241295,1773298231589,-1200.0,0.00018764,2]
[408241296,1773298231598,-1097.45339616,0.00018765,2]
[408241299,1773298237641,-1000.0,0.0001863,2]
[408241300,1773298237650,-471.41660384,0.00018765,2]
[408241301,1773298237659,-1000.0,0.00018904,2]
[408241302,1773298237668,-500.0,0.0001898,2]
[408241303,1773298237678,-755.76944745,0.00019008,2]
[408241304,1773298237698,-200.0,0.00019035,2]
[408241305,1773298237714,-200.0,0.00019035,2]
[408241306,1773298237724,-200.0,0.00019035,2]
[408241307,1773298237734,-200.0,0.00019035,2]
[408241308,1773298237744,-200.0,0.00019035,2]
[408241309,1773298237753,-200.0,0.00019035,2]
[408241310,1773298237763,-177.76,0.00019035,2]
[408241311,1773298237772,-166.66,0.000191,2]
[408241312,1773298237781,-200.0,0.00019142,2]
[408241313,1773298237790,-878.0,0.00019152,2]
[408241314,1773298237800,-10.39394871,0.00019159,2]
[408241347,1773298238426,-9559.22605129,0.00019159,2]
[408241348,1773298238436,-6388.4,0.00019159,2]
[408241349,1773298238445,-153.9,0.0001917,2]
[408241350,1773298238454,-1000.0,0.00019178,2]
[408241351,1773298238464,-2000.0,0.000192,2]
[408241352,1773298238473,-200.0,0.000192,2]
[408241353,1773298238673,-350.0,0.00019248,2]
[408241354,1773298238687,-2168.18,0.00019288,2]
[408241355,1773298238697,-29737.7307,0.00019363,2]
[408241356,1773298238706,-1019.0,0.00019382,2]
[408241357,1773298238715,-498.55988426,0.000194,5]
[408241358,1773298238726,-1042.76032936,0.000194,5]
[408241359,1773298238735,-500.5198783,0.0001941,2]
[408241360,1773298238744,-878.0,0.00019426,2]
[408241361,1773298238752,-500.0,0.00019451,2]
[408241362,1773298238762,-500.0,0.00019451,2]
[408241363,1773298238771,-500.0,0.00019451,2]
[408241364,1773298238780,-500.0,0.00019451,2]
[408241365,1773298238789,-500.0,0.00019451,2]
[408241366,1773298238798,-500.0,0.00019451,2]
[408241367,1773298238809,-500.0,0.00019451,2]
[408241368,1773298238819,-200.0,0.00019451,2]
[408241369,1773298238827,-500.0,0.00019451,2]
[408241370,1773298238836,-500.0,0.00019451,2]
[408241371,1773298238846,-500.0,0.00019451,2]
[408241372,1773298238855,-500.0,0.00019451,2]
[408241373,1773298238864,-500.0,0.00019451,2]
[408241374,1773298238874,-500.0,0.00019451,2]
[408241375,1773298238883,-500.0,0.00019451,2]
[408241376,1773298238893,-588.40591804,0.00019451,2]
[408241377,1773298238902,-500.0,0.00019451,2]
[408241378,1773298238911,-500.0,0.00019451,2]
[408241379,1773298238920,-500.0,0.00019451,2]
[408241380,1773298238929,-500.0,0.00019451,2]
[408241381,1773298238938,-151.0,0.00019451,2]
[408241382,1773298238947,-151.0,0.00019451,2]
[408241383,1773298238955,-250.0,0.00019451,2]
[408241384,1773298238966,-289.57214403,0.00019451,2]
[408241385,1773298238975,-250.0,0.00019451,2]
[408241386,1773298238984,-250.0,0.00019451,2]
[408241387,1773298238993,-250.0,0.00019451,2]
[408241388,1773298239002,-250.0,0.00019451,2]
[408241389,1773298239011,-250.0,0.00019451,2]
[408241390,1773298239020,-250.0,0.00019451,2]
[408241391,1773298239029,-250.0,0.00019451,2]
[408241392,1773298239042,-250.0,0.00019451,2]
[408241393,1773298239051,-250.0,0.00019451,2]
[408241394,1773298239061,-151.0,0.00019451,2]
[408241395,1773298239070,-250.0,0.00019451,2]
[408241396,1773298239080,-250.0,0.00019451,2]
[408241397,1773298239089,-1000.0,0.00019452,2]
[408241398,1773298239103,-168.0,0.00019452,2]
[408241399,1773298239112,-152.0,0.00019458,4]
[408241400,1773298239121,-20164.46588292,0.00019463,2]
[408241401,1773298239130,-1548.41975714,0.00019463,2]
[408241402,1773298239138,-6273.57506245,0.00019468,2]
[408241403,1773298239147,-363.9842,0.00019468,2]
[408241404,1773298239157,-1355.159,0.0001947,2]
[408241405,1773298239166,-2500.0,0.0001947,2]
[408241406,1773298239175,-5959.14727573,0.0001947,2]
[408241407,1773298239184,-227.02109222,0.0001947,2]
[408241408,1773298239193,-317.1909305,0.0001947,2]
[408241409,1773298239202,-516.23528592,0.00019473,2]
[408241410,1773298239210,-166.66,0.00019478,2]
[408241411,1773298239219,-180.11805053,0.00019483,2]
[408241412,1773298239228,-350.0,0.00019487,2]
[408241413,1773298239237,-200.0,0.00019487,2]
[408241414,1773298239245,-1019.0,0.00019489,2]
[408241415,1773298239254,-527.58273383,0.00019516,2]
[408241416,1773298239266,-5745.99232858,0.00019516,2]
[408241417,1773298239275,-500.0,0.0001952,2]
[408241418,1773298239284,-233.0,0.0001953,2]
[408241419,1773298239293,-1779.0,0.00019534,2]
[408241420,1773298239302,-222.66927327,0.0001956,2]
[408241421,1773298239311,-6273.57506241,0.00019564,2]
[408241422,1773298239320,-923.41,0.00019568,2]
[408241423,1773298239329,-300.0,0.00019569,2]
[408241424,1773298239338,-199.99195058,0.00019569,2]
[408241425,1773298239347,-500.0,0.00019569,2]
[408241426,1773298239356,-267.31885565,0.00019569,2]
[408241427,1773298239365,-153.9840694,0.00019569,2]
[408241428,1773298239374,-500.0,0.00019569,2]
[408241429,1773298239383,-383.19919307,0.00019569,2]
[408241430,1773298239392,-500.0,0.00019569,2]
[408241431,1773298239400,-500.0,0.00019569,2]
[408241432,1773298239409,-500.0,0.00019569,2]
[408241433,1773298239418,-500.0,0.00019569,2]
[408241434,1773298239427,-500.0,0.00019569,2]
[408241435,1773298239435,-500.0,0.00019569,2]
[408241436,1773298239444,-500.0,0.00019569,2]
[408241437,1773298239453,-500.0,0.00019569,2]
[408241438,1773298239462,-500.0,0.00019569,2]
[408241439,1773298239470,-500.0,0.00019569,2]
[408241440,1773298239480,-500.0,0.00019569,2]
[408241441,1773298239489,-500.0,0.00019569,2]
[408241442,1773298239498,-500.0,0.00019569,2]
[408241443,1773298239507,-500.0,0.00019569,2]
[408241444,1773298239516,-500.0,0.00019569,2]
[408241445,1773298239525,-500.0,0.00019569,2]
[408241446,1773298239534,-500.0,0.00019569,2]
[408241447,1773298239543,-500.0,0.00019569,2]
[408241448,1773298239552,-500.0,0.00019569,2]
[408241449,1773298239561,-500.0,0.00019569,2]
[408241450,1773298239571,-500.0,0.00019569,2]
[408241451,1773298239579,-500.0,0.00019569,2]
[408241452,1773298239588,-500.0,0.00019569,2]
[408241453,1773298239597,-500.0,0.00019569,2]
[408241454,1773298239606,-500.0,0.00019569,2]
[408241455,1773298239615,-500.0,0.00019569,2]
[408241456,1773298239624,-346.29671798,0.00019569,2]
[408241457,1773298239633,-500.0,0.00019569,2]
[408241458,1773298239641,-500.0,0.00019569,2]
[408241459,1773298239650,-500.0,0.00019569,2]
[408241460,1773298239659,-500.0,0.00019569,2]
[408241461,1773298239668,-205.14407977,0.00019569,2]
[408241462,1773298239677,-157.78082569,0.00019569,2]
[408241463,1773298239689,-500.0,0.00019569,2]
[408241464,1773298239698,-500.0,0.00019569,2]
[408241465,1773298239707,-500.0,0.00019569,2]
[408241466,1773298239715,-500.0,0.00019569,2]
[408241467,1773298239725,-500.0,0.00019569,2]
[408241468,1773298239734,-635.92172854,0.00019569,2]
[408241469,1773298239745,-500.0,0.00019569,2]
[408241470,1773298239754,-500.0,0.00019569,2]
[408241471,1773298239764,-500.0,0.00019569,2]
[408241472,1773298239773,-500.0,0.00019569,2]
[408241473,1773298239783,-510.24405567,0.00019569,2]
[408241474,1773298239792,-500.0,0.00019569,2]
[408241475,1773298239801,-509.51353316,0.00019569,2]
[408241476,1773298239810,-500.0,0.00019569,2]
[408241477,1773298239819,-502.39753346,0.00019569,2]
[408241478,1773298239829,-500.0,0.00019569,2]
[408241479,1773298239838,-500.0,0.00019569,2]
[408241480,1773298239847,-352.08916569,0.00019569,2]
[408241481,1773298239856,-500.0,0.00019569,2]
[408241482,1773298239865,-500.0,0.00019569,2]
[408241483,1773298239875,-500.0,0.00019569,2]
[408241484,1773298239883,-500.0,0.00019569,2]
[408241485,1773298239892,-285.52,0.00019569,2]
[408241486,1773298239901,-500.0,0.00019569,2]
[408241487,1773298239910,-29374.01364466,0.0001957,2]
[408241488,1773298240086,-3731.8588095,0.0001957,2]
[408241489,1773298240264,-2369379.62144584,0.0001957,2]
[408241490,1773298240273,-5202.34,0.0001957,2]
[408241491,1773298240282,-501.3548295,0.00019573,2]
[408241492,1773298240291,-503.26645979,0.00019573,2]
[408241493,1773298240300,-500.0,0.00019573,2]
[408241494,1773298240310,-500.0,0.00019573,2]
[408241495,1773298240319,-500.8419294,0.00019573,2]
[408241496,1773298240328,-300.0,0.00019578,2]
[408241497,1773298240337,-84146.54144277,0.00019579,2]
[408241498,1773298240347,-4744.74031881,0.00019582,2]
[408241499,1773298240356,-200.0,0.00019583,2]
[408241500,1773298240365,-32942.6924,0.00019583,2]
[408241501,1773298240374,-1000.0,0.00019583,2]
[408241502,1773298240383,-858.82371979,0.000196,2]
[408241503,1773298240392,-2012.61911856,0.000196,2]
[408241504,1773298240402,-6273.57506241,0.00019612,2]
[408241505,1773298240412,-200.0,0.00019618,2]
[408241506,1773298240422,-200.0,0.00019653,2]
[408241507,1773298240433,-6273.57506241,0.0001966,2]
[408241508,1773298240442,-1019.0,0.00019669,2]
[408241509,1773298240451,-500.0,0.00019671,2]
[408241510,1773298240460,-154.81144143,0.00019671,2]
[408241511,1773298240469,-150.0,0.00019671,2]
[408241512,1773298240478,-500.0,0.00019671,2]
[408241513,1773298240487,-150.0,0.00019671,2]
[408241514,1773298240496,-150.0,0.00019671,2]
[408241515,1773298240506,-156.77659394,0.00019671,2]
[408241516,1773298240516,-500.0,0.00019671,2]
[408241517,1773298240525,-214.86194444,0.00019671,2]
[408241518,1773298240534,-150.0,0.00019671,2]
[408241519,1773298240543,-150.0,0.00019671,2]
[408241520,1773298240551,-150.0,0.00019671,2]
[408241521,1773298240561,-500.0,0.00019671,2]
[408241522,1773298240570,-500.0,0.00019671,2]
[408241523,1773298240579,-150.0,0.00019671,2]
[408241524,1773298240592,-500.0,0.00019671,2]
[408241525,1773298240601,-500.0,0.00019671,2]
[408241526,1773298240610,-500.0,0.00019671,2]
[408241527,1773298240619,-500.0,0.00019671,2]
[408241528,1773298240628,-177.99151511,0.00019671,2]
[408241529,1773298240638,-500.0,0.00019671,2]
[408241530,1773298240647,-500.0,0.00019671,2]
[408241531,1773298240656,-500.0,0.00019671,2]
[408241532,1773298240665,-150.0,0.00019671,2]
[408241533,1773298240674,-889.0,0.00019671,2]
[408241534,1773298240687,-500.0,0.00019671,2]
[408241535,1773298240696,-500.0,0.00019671,2]
[408241536,1773298240705,-500.0,0.00019671,2]
[408241537,1773298240715,-500.0,0.00019671,2]
[408241538,1773298240726,-500.0,0.00019671,2]
[408241539,1773298240735,-500.0,0.00019671,2]
[408241540,1773298240745,-557.0,0.00019671,2]
[408241541,1773298240754,-150.0,0.00019671,2]
[408241542,1773298240765,-150.0,0.00019671,2]
[408241543,1773298240776,-500.0,0.00019671,2]
[408241544,1773298240786,-150.0,0.00019671,2]
[408241545,1773298240797,-500.0,0.00019671,2]
[408241546,1773298240807,-500.0,0.00019671,2]
[408241547,1773298240817,-500.0,0.00019671,2]
[408241548,1773298240827,-150.0,0.00019671,2]
[408241549,1773298240836,-500.0,0.00019671,2]
[408241550,1773298240846,-500.0,0.00019671,2]
[408241551,1773298240855,-500.0,0.00019671,2]
[408241552,1773298240863,-150.0,0.00019671,2]
[408241553,1773298240872,-150.0,0.00019671,2]
[408241554,1773298240881,-506.63695301,0.00019682,2]
[408241555,1773298240891,-500.0,0.00019682,2]
[408241556,1773298240900,-500.0,0.00019682,2]
[408241557,1773298240909,-500.0,0.00019682,2]
[408241558,1773298240918,-500.0,0.00019682,2]
[408241559,1773298240927,-500.0,0.00019682,2]
[408241560,1773298240936,-500.0,0.00019682,2]
[408241561,1773298240945,-500.0,0.00019682,2]
[408241562,1773298240954,-500.0,0.00019682,2]
[408241563,1773298240963,-215.09996795,0.00019682,2]
[408241564,1773298240973,-500.0,0.00019682,2]
[408241565,1773298240983,-500.0,0.00019682,2]
[408241566,1773298240992,-500.0,0.00019682,2]
[408241567,1773298241001,-504.12406737,0.00019682,2]
[408241568,1773298241010,-500.0,0.00019682,2]
[408241569,1773298241019,-500.0,0.00019682,2]
[408241570,1773298241028,-500.0,0.00019682,2]
[408241571,1773298241038,-500.0,0.00019682,2]
[408241572,1773298241047,-500.0,0.00019682,2]
[408241573,1773298241057,-200.0,0.00019683,2]
[408241574,1773298241066,-1019.0,0.00019683,2]
[408241575,1773298241075,-878.0,0.000197,2]
[408241576,1773298241085,-1568.87,0.00019704,2]
[408241577,1773298241094,-6273.57506241,0.00019708,2]
[408241578,1773298241103,-200.0,0.0001971,2]
[408241579,1773298241112,-200.0,0.00019724,2]
[408241580,1773298241122,-500.0,0.00019726,2]
[408241581,1773298241131,-150.0,0.00019726,2]
[408241582,1773298241140,-500.0,0.00019726,2]
[408241583,1773298241149,-150.0,0.00019726,2]
[408241584,1773298241159,-150.0,0.00019726,2]
[408241585,1773298241168,-500.0,0.00019726,2]
[408241586,1773298241178,-150.0,0.00019726,2]
[408241587,1773298241187,-150.0,0.00019726,2]
[408241588,1773298241196,-500.0,0.00019726,2]
[408241589,1773298241205,-500.0,0.00019726,2]
[408241590,1773298241215,-150.0,0.00019726,2]
[408241591,1773298241224,-500.0,0.00019726,2]
[408241592,1773298241233,-500.0,0.00019726,2]
[408241593,1773298241243,-500.0,0.00019726,2]
[408241594,1773298241252,-605.47740234,0.00019726,2]
[408241595,1773298241261,-500.0,0.00019726,2]
[408241596,1773298241275,-500.0,0.00019726,2]
[408241597,1773298241284,-150.0,0.00019726,2]
[408241598,1773298241293,-500.0,0.00019726,2]
[408241599,1773298241302,-889.0,0.00019726,2]
[408241600,1773298241311,-500.0,0.00019726,2]
[408241601,1773298241320,-500.0,0.00019726,2]
[408241602,1773298241329,-500.0,0.00019726,2]
[408241603,1773298241338,-500.0,0.00019726,2]
[408241604,1773298241348,-500.0,0.00019726,2]
[408241605,1773298241357,-500.0,0.00019726,2]
[408241606,1773298241366,-557.0,0.00019726,2]
[408241607,1773298241375,-150.0,0.00019726,2]
[408241608,1773298241384,-150.0,0.00019726,2]
[408241609,1773298241393,-500.0,0.00019726,2]